bitfinex-derivatives/quotes_ETHF0:USTF0_20250803
["timestamp","ask_amount","ask_price","bid_price","bid_amount"]
[1754190034757,0.58112,3442.2,3441.0,2.03718137]
[1754190034963,3.2078,3441.1,3441.0,8.06990063]
[1754190035264,1.9482,3441.1,3441.0,22.58990063]
[1754190035455,0.6886,3441.1,3441.0,22.58990063]
[1754190035657,0.58115,3442.0,3441.6,0.472]
[1754190035852,0.8045,3441.2,3441.1,6.07760063]
[1754190036161,21.7755,3441.2,3441.1,1.6286]
[1754190036355,21.7755,3441.2,3441.1,9.733]
[1754190036553,20.971,3441.2,3441.1,16.17430063]
[1754190037264,22.24777951,3441.2,3441.1,16.17430063]
[1754190037656,23.42167951,3441.2,3441.1,16.17430063]
[1754190037858,23.88007951,3441.2,3441.1,16.17430063]
[1754190038059,23.42167951,3441.2,3441.1,16.17430063]
[1754190038264,22.5231,3441.2,3441.1,16.17430063]
[1754190038762,22.74700331,3441.2,3441.1,16.17430063]
[1754190038958,21.87890331,3441.2,3441.1,16.17430063]
[1754190039158,21.89832398,3441.2,3441.1,16.17430063]
[1754190039364,20.971,3441.2,3441.1,16.17430063]
[1754190039767,20.971,3441.2,3441.1,19.38210063]
[1754190040769,0.4584,3441.9,3441.1,19.38210063]
[1754190040770,20.933,3441.5,3441.4,0.5933]
[1754190040973,20.933,3441.5,3441.4,1.1914]
[1754190041172,20.933,3441.5,3441.4,7.26900063]
[1754190041362,21.85901093,3441.5,3441.4,7.26900063]
[1754190041564,20.935,3441.7,3441.4,7.26900063]
[1754190041861,20.935,3441.7,3441.1,3.78908]
[1754190041862,20.935,3441.7,3441.6,0.7965]
[1754190042165,21.86097774,3441.7,3441.6,6.87410063]
[1754190042765,20.935,3441.7,3441.6,6.87410063]
[1754190043072,2.0105,3442.5,3442.4,0.5981]
[1754190043273,23.85919201,3442.5,3442.4,6.67570063]
[1754190043474,23.85919201,3442.5,3442.4,0.5981]
[1754190044363,2.0105,3441.6,3441.5,0.5981]
[1754190044565,2.0105,3441.6,3441.5,0.2431]
[1754190044566,22.9275,3441.6,3441.5,0.2431]
[1754190044768,22.9275,3441.6,3441.5,6.32070063]
[1754190045169,22.9275,3441.6,3441.5,6.67570063]
[1754190045359,22.9275,3441.6,3441.5,6.07760063]
[1754190045764,22.9275,3441.6,3441.5,6.32070063]
[1754190046069,22.9275,3441.6,3441.5,6.67570063]
[1754190046670,22.9275,3441.6,3441.5,6.07760063]
[1754190047672,23.50871,3441.6,3441.3,3.2078]
[1754190047866,21.7215,3441.6,3441.5,6.07760063]
[1754190048269,21.7215,3441.6,3441.0,0.58131]
[1754190048470,0.58126,3441.3,3441.0,0.355]
[1754190048678,2.0105,3441.0,3440.9,0.2431]
[1754190048977,22.8915,3441.0,3440.9,0.5981]
[1754190049176,22.8915,3441.0,3440.9,6.67570063]
[1754190052476,22.8915,3441.0,3440.9,6.07760063]
[1754190053280,22.8915,3441.0,3440.9,6.32070063]
[1754190054180,22.8915,3441.0,3439.8,1.45378]
[1754190054181,0.8045,3440.6,3440.4,0.58141]
[1754190054374,22.8445,3440.5,3440.4,1.17951]
[1754190054776,22.8445,3440.5,3440.4,7.25711063]
[1754190056882,22.8445,3440.5,3440.4,6.67570063]
[1754190057271,26.5594002,3440.5,3440.4,6.07760063]
[1754190057575,1.6411,3440.3,3440.2,0.82455]
[1754190057776,22.8205,3440.3,3440.2,0.5981]
[1754190057975,22.8205,3440.3,3440.2,6.67570063]
[1754190058182,22.8205,3440.3,3440.2,6.32070063]
[1754190058780,22.8205,3440.3,3440.2,6.67570063]
[1754190060276,21.1702,3440.3,3440.2,6.67570063]
[1754190061574,21.1702,3440.3,3440.2,7.43550063]
[1754190061970,21.1702,3440.3,3440.2,8.09850063]
[1754190063571,21.9834,3440.3,3440.2,8.09850063]
[1754190063772,22.2354,3440.3,3440.2,6.07760063]
[1754190064081,22.2354,3440.3,3440.0,3.2078]
[1754190064082,23.4306,3440.3,3440.0,3.2078]
[1754190064280,3.1481,3440.2,3440.1,6.07760063]
[1754190064883,5.00787485,3440.2,3440.1,6.07760063]
[1754190065084,5.00787485,3440.2,3440.1,6.51950063]
[1754190065379,1.72961617,3440.9,3440.8,1.8843]
[1754190065586,24.148298,3440.9,3440.8,8.05090063]
[1754190065786,24.838798,3440.9,3440.8,8.71390063]
[1754190065984,1.787298,3440.9,3440.8,8.71390063]
[1754190066187,21.685698,3440.9,3440.8,8.71390063]
[1754190066681,0.928698,3440.9,3440.8,8.71390063]
[1754190066881,20.758,3441.1,3441.0,1.0956]
[1754190067086,21.68687766,3441.1,3441.0,8.62490063]
[1754190067785,0.92887766,3441.1,3441.0,8.62490063]
[1754190067992,20.76,3441.2,3441.1,3.1187]
[1754190068281,21.68887521,3441.2,3440.9,3.78912]
[1754190068484,3.1481,3441.0,3440.9,3.2078]
[1754190068787,23.8971,3441.0,3440.9,6.07760063]
[1754190068986,23.8971,3441.0,3440.9,7.78830063]
[1754190070587,23.8971,3441.0,3440.9,7.95200063]
[1754190073987,23.8971,3441.0,3440.9,6.07760063]
[1754190074181,23.8971,3441.0,3440.9,7.00340063]
[1754190074378,1.9529,3441.5,3441.4,1.0895]
[1754190074583,24.81145626,3441.5,3441.4,7.95200063]
[1754190074784,0.92535626,3441.5,3441.4,8.53323063]
[1754190074986,21.65935626,3441.5,3441.4,9.19623063]
[1754190076085,22.34535626,3441.5,3441.4,9.19623063]
[1754190076286,22.34435626,3441.5,3441.4,9.19623063]
[1754190079291,22.34437066,3441.5,3441.4,9.19623063]
[1754190079487,23.15757066,3441.5,3441.4,9.19623063]
[1754190079687,23.15755799,3441.5,3441.4,9.19623063]
[1754190079882,22.2322,3441.5,3441.4,9.19623063]
[1754190080086,22.7369,3441.5,3441.4,9.19623063]
[1754190080387,2.4621,3441.6,3441.5,2.5374]
[1754190080588,23.1571,3441.6,3441.5,8.61500063]
[1754190080785,23.1571,3441.6,3441.5,6.56150063]
[1754190080989,24.76832827,3441.6,3441.5,6.07760063]
[1754190081192,24.76832827,3441.6,3441.5,6.56150063]
[1754190081496,3.1481,3442.0,3441.9,1.50696]
[1754190081687,23.10632994,3442.0,3441.9,8.53316063]
[1754190081889,21.368,3442.0,3441.9,9.19616063]
[1754190082290,23.1396,3442.0,3441.9,9.19616063]
[1754190082591,23.8301,3442.0,3441.9,9.19616063]
[1754190083696,23.8301,3442.0,3441.9,8.53316063]
[1754190087500,2.4621,3442.4,3442.3,1.22869]
[1754190087699,23.0951,3442.4,3442.3,7.74819063]
[1754190088104,23.7811,3442.4,3442.3,8.53309063]
[1754190090700,23.7811,3442.4,3442.3,9.19609063]
[1754190090901,22.1322,3442.4,3442.3,9.19609063]
[1754190091103,3.1481,3442.7,3442.6,3.11844]
[1754190091298,22.1062,3442.7,3442.6,9.19604063]
[1754190091904,20.607,3442.7,3442.6,9.19604063]
[1754190092405,20.607,3442.7,3442.6,3.11844]
[1754190092613,21.2807,3442.7,3442.6,9.19604063]
[1754190092816,22.0912,3442.7,3442.6,9.19604063]
[1754190093610,22.6007,3442.7,3442.6,9.19604063]
[1754190093809,23.2626,3442.7,3442.6,9.19604063]
[1754190094004,23.7165,3442.7,3442.6,8.53304063]
[1754190095012,23.7165,3442.7,3442.6,9.20344063]
[1754190095211,23.7165,3442.7,3442.6,8.53304063]
[1754190095610,3.1095,3442.7,3442.6,8.53304063]
[1754190096022,1.2644,3442.7,3442.5,3.78885]
[1754190096220,23.6775,3442.6,3442.5,3.78885]
[1754190096518,21.8324,3442.6,3442.2,0.5811]
[1754190096814,21.8324,3442.6,3441.9,3.2078]
[1754190096815,4.97784629,3442.4,3442.0,0.58114]
[1754190097020,3.1095,3442.1,3442.0,0.58114]
[1754190097217,23.6745,3442.1,3442.0,0.58114]
[1754190097419,23.6745,3442.1,3442.0,6.65874063]
[1754190097621,23.6745,3442.1,3442.0,7.10594063]
[1754190097814,22.5031,3442.1,3442.0,8.48294063]
[1754190098019,23.6745,3442.1,3442.0,9.15334063]
[1754190098222,23.6745,3442.1,3442.0,8.48294063]
[1754190098515,23.6745,3442.1,3442.0,6.65874063]
[1754190099421,23.6745,3442.1,3442.0,6.07760063]
[1754190102223,3.1095,3442.0,3441.9,3.2078]
[1754190102628,23.6455,3442.0,3441.9,10.96990063]
[1754190102817,23.6455,3442.0,3441.9,11.10960063]
[1754190103726,23.6455,3442.0,3441.9,7.90180063]
[1754190112528,23.6455,3442.0,3441.9,11.10960063]
[1754190113227,23.6455,3442.0,3441.9,7.90180063]
[1754190116828,25.50315829,3442.0,3441.9,7.90180063]
[1754190117620,23.6455,3442.0,3441.9,7.90180063]
[1754190117822,23.6455,3442.0,3441.9,8.57220063]
[1754190118628,23.6455,3442.0,3441.9,7.90180063]
[1754190120325,23.6455,3442.0,3441.9,8.57220063]
[1754190121633,23.6455,3442.0,3441.9,7.90180063]
[1754190121835,3.1457,3441.6,3441.5,3.78903]
[1754190122027,25.41135829,3441.6,3441.5,3.78903]
[1754190122226,25.41135829,3441.6,3441.5,9.86663063]
[1754190123026,23.5537,3441.6,3441.5,11.67923063]
[1754190126535,23.5537,3441.6,3441.5,12.33253063]
[1754190127337,21.1072,3441.6,3441.5,12.33253063]
[1754190127539,21.5706,3441.6,3441.5,12.33253063]
[1754190127739,23.0921,3441.6,3441.5,12.33253063]
[1754190128433,23.5537,3441.6,3441.5,12.33253063]
[1754190129034,23.5537,3441.6,3441.5,11.67923063]
[1754190129440,25.41135829,3441.6,3441.5,11.67923063]
[1754190129635,25.41135829,3441.6,3441.5,10.77863063]
[1754190129940,25.41135829,3441.6,3441.5,10.33933063]
[1754190130136,25.41135829,3441.6,3441.5,11.11833063]
[1754190130436,25.41135829,3441.6,3441.5,11.67923063]
[1754190139238,25.41135829,3441.6,3441.5,5.60163]
[1754190139441,25.41135829,3441.6,3441.5,11.67923063]
[1754190145535,23.5537,3441.6,3441.5,11.67923063]
[1754190147950,25.41135829,3441.6,3441.5,11.67923063]
[1754190148649,23.5537,3441.6,3441.5,11.67923063]
[1754190154052,26.26888032,3441.6,3441.5,9.86663063]
[1754190154547,26.26888032,3441.6,3441.5,3.78903]
[1754190158353,26.26888032,3441.6,3441.5,4.45503]
[1754190158554,26.26888032,3441.6,3441.5,4.51273]
[1754190159054,26.26888032,3441.6,3441.5,4.94053]
[1754190159451,26.26888032,3441.6,3441.5,4.21683]
[1754190159650,26.26888032,3441.6,3441.5,4.88283]
[1754190160253,26.26888032,3441.6,3441.5,4.21683]
[1754190160452,26.26888032,3441.6,3441.5,3.78903]
[1754190161758,26.26888032,3441.6,3441.5,3.2078]
[1754190161957,1.2341,3441.4,3441.3,0.58125]
[1754190162157,24.20276574,3441.4,3441.3,0.58125]
[1754190164361,3.0837,3441.3,3441.2,0.58127]
[1754190164556,5.86142403,3441.3,3441.2,0.58127]
[1754190165358,5.86142403,3441.3,3441.1,3.78909]
[1754190165559,23.2697,3441.2,3441.1,3.78909]
[1754190168966,1.2341,3441.1,3441.0,0.5813]
[1754190169264,3.0837,3441.1,3441.0,0.5813]
[1754190170660,1.2341,3441.1,3440.8,0.089]
[1754190170963,20.186,3441.2,3440.8,0.089]
[1754190170964,4.94135829,3440.9,3440.8,0.089]
[1754190172767,4.94135829,3440.9,3440.8,1.6666]
[1754190173364,5.8597946,3440.9,3440.8,1.6666]
[1754190176364,4.94135829,3440.9,3440.8,1.6666]
[1754190176864,4.94135829,3440.9,3440.8,1.0006]
[1754190177063,5.85926347,3440.9,3440.8,1.2405]
[1754190177869,4.94135829,3440.9,3440.8,0.089]
[1754190178569,4.94135829,3440.9,3440.8,1.6666]
[1754190178770,4.94135829,3440.9,3440.8,0.089]
[1754190180270,5.8590687,3440.9,3440.8,1.6666]
[1754190180870,5.85907063,3440.9,3440.8,1.6666]
[1754190181172,4.94135829,3440.9,3440.8,1.759]
[1754190181663,5.85907012,3440.9,3440.8,0.089]
[1754190181867,0.3292,3440.4,3440.3,0.6981]
[1754190182058,24.98225829,3440.4,3440.3,1.552]
[1754190182366,23.1246,3440.4,3440.3,8.30020063]
[1754190182965,20.122,3440.4,3440.3,8.30020063]
[1754190183276,23.1246,3440.4,3440.3,8.30020063]
[1754190184470,20.122,3440.4,3440.3,8.30020063]
[1754190184667,3.2078,3440.9,3440.3,8.30020063]
[1754190184668,4.37035829,3440.9,3440.8,1.5759]
[1754190184875,25.9027958,3440.9,3440.8,1.6156]
[1754190185169,3.2078,3441.4,3441.3,0.8539]
[1754190185375,0.91753456,3441.4,3441.3,8.18336063]
[1754190185874,20.133,3441.5,3441.4,2.2226]
[1754190186166,2.37748432,3442.5,3441.4,9.70150063]
[1754190186389,0.6774,3442.4,3442.3,0.607]
[1754190186562,0.6774,3442.4,3441.6,1.85765829]
[1754190186563,1.313,3442.3,3440.7,3.2078]
[1754190186764,1.85765829,3441.4,3441.1,4.5784]
[1754190186976,42.9624325,3442.2,3441.7,6.07760063]
[1754190186977,1.85765829,3441.8,3441.7,6.07760063]
[1754190187174,26.17871477,3441.8,3441.7,9.04660063]
[1754190187479,0.91745648,3441.8,3441.7,9.04660063]
[1754190187671,3.8852,3442.6,3442.5,2.9574]
[1754190187873,3.8852,3442.6,3442.5,9.03500063]
[1754190187874,4.2997,3442.6,3442.5,9.03500063]
[1754190188068,4.9353,3442.6,3442.5,9.03500063]
[1754190188268,5.74285829,3442.6,3442.5,9.03500063]
[1754190188868,4.53105829,3442.9,3442.8,1.1898]
[1754190189071,2.53505829,3442.9,3442.8,9.03500063]
[1754190189768,3.58515829,3442.9,3442.8,9.03500063]
[1754190190363,3.8852,3443.1,3443.0,2.9574]
[1754190190570,3.2078,3443.1,3443.0,9.03500063]
[1754190190775,6.68165829,3446.0,3443.7,0.5022]
[1754190190776,1.85765829,3444.0,3443.7,0.5022]
[1754190190974,3.05735829,3444.0,3443.9,9.03500063]
[1754190191273,3.54725829,3444.0,3443.9,8.42800063]
[1754190191472,4.86025829,3444.0,3443.9,8.42800063]
[1754190191675,3.0026,3444.0,3443.9,8.42800063]
[1754190191869,4.86025829,3444.0,3443.9,8.42800063]
[1754190192775,4.86025829,3444.0,3443.6,0.5022]
[1754190192974,3.0026,3443.4,3443.3,0.3359]
[1754190193278,24.44615829,3443.9,3443.8,2.9574]
[1754190193475,24.44615829,3443.9,3443.8,9.03500063]
[1754190194378,24.77535829,3443.9,3443.8,9.03500063]
[1754190194577,25.26525829,3443.9,3443.8,9.03500063]
[1754190194779,25.26525829,3443.9,3443.8,8.42800063]
[1754190195273,0.8705,3443.3,3443.2,0.58093]
[1754190195470,4.86025829,3443.3,3443.2,2.93133]
[1754190195682,4.86025829,3443.3,3443.2,8.42800063]
[1754190195872,4.86025829,3443.3,3443.2,7.76960063]
[1754190196380,3.05735829,3443.3,3442.9,0.6584]
[1754190196580,4.86025829,3443.0,3442.9,1.2542]
[1754190196969,4.86025829,3443.0,3442.9,7.33180063]
[1754190197475,3.0026,3442.8,3442.7,1.692]
[1754190197675,4.86025829,3442.8,3442.7,1.692]
[1754190197881,4.86025829,3442.8,3442.7,7.76960063]
[1754190200083,4.86025829,3442.8,3442.7,8.42800063]
[1754190200984,4.86025829,3442.8,3442.7,7.76960063]
[1754190201387,1.1997,3442.5,3442.4,2.42927]
[1754190201580,3.0026,3442.5,3442.4,2.42927]
[1754190201786,3.0026,3442.5,3442.4,8.50687063]
[1754190201982,3.0026,3442.5,3442.4,6.99457063]
[1754190201983,4.86025829,3442.5,3442.4,6.99457063]
[1754190202175,3.0026,3442.3,3442.2,0.91701]
[1754190202384,4.86025829,3442.3,3442.2,1.83531]
[1754190202581,4.86025829,3442.3,3442.2,2.93151]
[1754190202789,4.86025829,3442.3,3442.2,2.27311]
[1754190203087,4.86025829,3442.3,3442.2,1.41921]
[1754190203485,4.86025829,3442.3,3442.2,2.27311]
[1754190203687,4.86025829,3442.3,3442.2,2.93151]
[1754190204985,4.86025829,3442.3,3442.2,2.27311]
[1754190205485,4.86025829,3442.3,3442.2,2.93151]
[1754190205686,0.6356,3442.6,3442.5,0.58105]
[1754190205888,0.6774,3442.9,3442.7,1.77083]
[1754190206090,0.6774,3442.9,3442.8,9.03500063]
[1754190206295,3.2078,3443.2,3443.1,2.9574]
[1754190206585,1.6896,3443.3,3443.2,2.59544]
[1754190206781,3.0026,3443.3,3443.2,3.53834]
[1754190206976,3.0026,3443.3,3443.2,9.61594063]
[1754190207193,3.0026,3443.3,3443.2,9.00894063]
[1754190208284,3.0026,3443.3,3443.2,8.42800063]
[1754190208481,1.8029,3443.2,3442.9,3.78878]
[1754190208785,4.86025829,3443.0,3442.9,8.35058063]
[1754190208985,4.86025829,3443.0,3442.9,9.00898063]
[1754190209587,4.86025829,3443.0,3442.9,7.76960063]
[1754190209790,4.86025829,3443.0,3442.9,1.692]
[1754190209989,4.86025829,3443.0,3442.9,0.8381]
[1754190210687,4.86025829,3443.0,3442.9,0.3359]
[1754190210890,1.1997,3442.6,3442.5,1.77086]
[1754190211188,4.86025829,3442.6,3442.5,2.93146]
[1754190211389,4.86025829,3442.6,3442.5,9.00906063]
[1754190212385,4.86025829,3442.6,3442.5,3.55206]
[1754190212691,4.86025829,3442.6,3442.5,9.62966063]
[1754190213895,4.86025829,3442.6,3442.5,9.00906063]
[1754190215591,4.86025829,3442.6,3442.5,9.62966063]
[1754190216196,4.86025829,3442.6,3442.5,9.00906063]
[1754190216694,1.3322,3442.5,3442.0,3.2078]
[1754190216894,4.96155829,3442.3,3442.2,6.07760063]
[1754190217099,4.96155829,3442.3,3442.2,6.40530063]
[1754190217292,4.96155829,3442.3,3442.2,7.79290063]
[1754190217489,4.96155829,3442.3,3442.2,8.44730063]
[1754190217790,3.1039,3442.3,3442.2,8.44730063]
[1754190225001,3.1039,3442.3,3442.2,7.79290063]
[1754190225200,3.1039,3442.3,3442.0,3.2078]
[1754190225201,1.8512,3442.2,3442.0,3.2078]
[1754190225398,3.1039,3442.0,3441.9,2.3697]
[1754190225906,3.1039,3442.0,3441.9,8.44730063]
[1754190226299,3.1039,3442.0,3441.9,9.02846063]
[1754190235919,1.1359,3442.0,3441.9,8.37406063]
[1754190236116,11.86353017,3457.8,3442.8,1.2155]
[1754190236117,1.04361617,3442.9,3442.8,1.2155]
[1754190236422,3.15695633,3442.9,3442.8,9.06790063]
[1754190236621,4.01825633,3442.9,3442.8,9.06790063]
[1754190238210,3.1039,3442.9,3442.8,9.06790063]
[1754190240113,1.85765829,3443.1,3442.8,8.44730063]
[1754190240418,1.59400041,3443.0,3442.9,2.9903]
[1754190240718,2.24700041,3443.0,3442.9,2.9903]
[1754190240918,2.70370041,3443.0,3442.9,9.06790063]
[1754190241309,3.11035829,3443.4,3443.3,0.58092]
[1754190241515,5.1972239,3443.4,3443.3,2.94742]
[1754190241814,4.6782239,3443.4,3443.3,9.02502063]
[1754190242020,5.3189239,3443.4,3443.3,9.62182063]
[1754190242321,3.11896561,3443.4,3443.3,9.62182063]
[1754190243217,0.91486561,3443.4,3443.3,9.62182063]
[1754190243426,5.7961,3443.9,3443.8,3.56554]
[1754190243623,3.50276236,3443.9,3443.8,9.64314063]
[1754190243920,2.9258,3443.4,3443.3,2.96882]
[1754190244114,2.49835829,3443.6,3443.5,1.81779]
[1754190244314,3.56465829,3443.6,3443.5,3.56559]
[1754190244514,3.56465829,3443.6,3443.5,9.64319063]
[1754190245122,0.6407,3443.6,3443.5,9.64319063]
[1754190245316,5.06545829,3443.9,3443.8,3.56554]
[1754190245317,3.8485,3443.9,3443.8,3.56554]
[1754190245516,3.8485,3443.9,3443.8,9.64314063]
[1754190246822,4.9148,3443.9,3443.8,9.64314063]
[1754190247315,5.328,3443.9,3443.8,9.64314063]
[1754190247522,6.1336,3443.9,3443.8,9.64314063]
[1754190250920,2.9258,3443.9,3443.8,9.64314063]
[1754190251323,1.85765829,3444.2,3444.1,2.47349]
[1754190251324,4.14275829,3444.2,3444.1,2.47349]
[1754190251622,4.14275829,3444.2,3444.1,2.96869]
[1754190251823,4.78345829,3444.2,3444.1,2.96869]
[1754190252519,3.8485,3444.4,3444.1,6.99319063]
[1754190252725,2.9258,3444.2,3444.1,2.96869]
[1754190253120,2.9258,3444.2,3444.1,9.04629063]
[1754190253321,4.78345829,3444.2,3444.1,0.58079]
[1754190253517,1.2916,3444.1,3443.8,0.4952]
[1754190253824,2.9258,3444.0,3443.9,6.07760063]
[1754190254334,2.5126,3443.8,3443.7,0.58086]
[1754190254520,2.9258,3443.8,3443.7,6.65846063]
[1754190254826,4.78345829,3443.8,3443.7,0.58086]
[1754190257021,4.78345829,3443.8,3443.7,2.96876]
[1754190257526,4.78345829,3443.8,3443.7,0.58086]
[1754190259827,4.78345829,3443.8,3443.6,3.78867]
[1754190260028,2.9258,3443.7,3443.6,0.58087]
[1754190262926,2.9258,3443.7,3443.6,1.07607]
[1754190263128,2.9258,3443.7,3443.6,1.41087]
[1754190263431,2.9258,3443.7,3443.6,2.51687]
[1754190264127,2.9258,3443.7,3443.6,2.96877]
[1754190264931,2.9258,3443.9,3443.8,1.81773]
[1754190265527,2.9258,3443.9,3443.8,2.96873]
[1754190265726,23.0438,3443.9,3443.8,2.96873]
[1754190270024,22.5757,3443.9,3443.8,1.81773]
[1754190270224,22.5757,3443.9,3443.8,2.96873]
[1754190270225,23.0438,3443.9,3443.8,2.96873]
[1754190270426,0.8056,3443.9,3443.8,2.96873]
[1754190270631,2.9258,3444.2,3444.1,2.41447]
[1754190270833,23.94149568,3444.2,3444.1,2.41447]
[1754190271224,23.94149568,3444.2,3444.1,3.56547]
[1754190271734,23.96869568,3444.2,3444.1,9.64307063]
[1754190272933,23.96869568,3444.2,3444.1,9.04627063]
[1754190273731,23.96869568,3444.2,3444.1,0.58077]
[1754190274133,23.96869568,3444.2,3444.0,0.5808]
[1754190274439,3.97215397,3444.1,3444.0,6.07760063]
[1754190274643,3.97215397,3444.1,3443.9,0.4802]
[1754190274825,4.82465829,3444.1,3444.0,6.07760063]
[1754190275138,5.74068006,3444.1,3444.0,6.07760063]
[1754190275329,5.74068006,3444.1,3444.0,0.58081]
[1754190275530,5.74068006,3444.1,3444.0,2.18661]
[1754190275729,5.74068006,3444.1,3444.0,2.82061]
[1754190276330,5.24538006,3444.1,3444.0,2.82061]
[1754190276540,4.92778006,3444.1,3444.0,9.47161063]
[1754190277538,5.74068006,3444.1,3444.0,9.47161063]
[1754190278740,5.74068006,3444.1,3444.0,8.89821063]
[1754190279640,2.967,3443.9,3443.8,0.58083]
[1754190279839,23.97402177,3443.9,3443.8,0.58083]
[1754190280042,23.97402177,3443.9,3443.8,6.65843063]
[1754190280339,23.97402177,3443.9,3443.8,7.44033063]
[1754190280642,23.97402177,3443.9,3443.8,6.85950063]
[1754190281738,23.97402177,3443.9,3443.8,7.90880063]
[1754190281938,23.97402177,3443.9,3443.8,8.31740063]
[1754190284337,1.58302177,3443.9,3443.8,7.20320063]
[1754190284540,21.67402177,3443.9,3443.8,8.88390063]
[1754190285036,0.91602177,3443.9,3443.8,8.88390063]
[1754190285238,20.091,3443.9,3443.8,8.88390063]
[1754190285547,23.97402177,3443.9,3443.8,9.46474063]
[1754190287241,23.058,3443.9,3443.8,9.46474063]
[1754190288246,22.5627,3443.9,3443.8,9.46474063]
[1754190288450,22.2451,3443.9,3443.8,9.46474063]
[1754190289349,22.7404,3443.9,3443.8,9.46474063]
[1754190289551,23.058,3443.9,3443.8,9.46474063]
[1754190290342,23.058,3443.9,3443.8,8.89824063]
[1754190291749,2.967,3443.9,3443.8,8.89824063]
[1754190291948,23.056,3443.9,3443.8,8.89824063]
[1754190293452,23.055,3443.9,3443.8,8.89824063]
[1754190293950,23.055,3443.9,3443.8,6.65844063]
[1754190294154,23.97115013,3443.9,3443.8,6.65844063]
[1754190294354,23.97115013,3443.9,3443.8,7.44034063]
[1754190294557,23.97115013,3443.9,3443.8,8.89824063]
[1754190295658,3.88315013,3443.9,3443.8,8.89824063]
[1754190295851,23.97115013,3443.9,3443.8,8.89824063]
[1754190296354,3.88315013,3443.9,3443.8,8.89824063]
[1754190296657,23.97115013,3443.9,3443.8,8.89824063]
[1754190296852,3.88315013,3443.9,3443.8,8.89824063]
[1754190297054,23.97115013,3443.9,3443.8,8.89824063]
[1754190297261,3.88315013,3443.9,3443.8,8.89824063]
[1754190297557,23.97015013,3443.9,3443.8,8.89824063]
[1754190298559,3.88315013,3443.9,3443.8,8.89824063]
[1754190298754,23.97015013,3443.9,3443.8,8.89824063]
[1754190301560,23.97015013,3443.9,3443.8,6.96014063]
[1754190302161,21.59545013,3443.9,3443.8,9.40214063]
[1754190302461,20.6793,3443.9,3443.8,9.40214063]
[1754190302855,22.8966,3443.9,3443.8,8.85174063]
[1754190303061,23.81289926,3443.9,3443.8,8.85174063]
[1754190303363,22.8966,3443.9,3443.8,8.85174063]
[1754190303863,23.81289687,3443.9,3443.8,8.24414063]
[1754190306858,1.672,3443.8,3443.7,0.58085]
[1754190307060,3.72589687,3443.8,3443.7,0.58085]
[1754190307963,3.72589687,3443.8,3443.7,1.33105]
[1754190309867,3.72589687,3443.8,3443.7,1.93865]
[1754190310857,3.72589687,3443.8,3443.7,1.33105]
[1754190313263,2.8096,3443.2,3443.1,6.53026]
[1754190313663,2.8096,3443.2,3443.1,12.60786063]
[1754190314358,2.3304,3443.2,3443.1,12.60786063]
[1754190314562,2.0043,3443.2,3443.1,12.60786063]
[1754190315670,1.5978,3443.2,3443.1,12.60786063]
[1754190316765,20.083,3443.4,3443.1,12.60786063]
[1754190316972,22.8926,3443.4,3443.3,8.81910063]
[1754190318174,22.8926,3443.4,3443.3,8.26870063]
[1754190318369,22.8926,3443.4,3443.3,6.07760063]
[1754190318765,22.8926,3443.4,3443.3,6.82780063]
[1754190318964,1.672,3443.3,3443.0,0.58097]
[1754190319165,4.66725829,3443.1,3443.0,0.4505]
[1754190319368,4.66725829,3443.1,3443.0,0.7502]
[1754190319567,4.66725829,3443.1,3443.0,6.82780063]
[1754190320178,4.66725829,3443.1,3443.0,7.86030063]
[1754190320466,4.66725829,3443.1,3443.0,8.26870063]
[1754190320664,4.66725829,3443.1,3443.0,8.81910063]
[1754190321170,0.5923,3443.3,3443.1,3.32246]
[1754190321475,20.081,3443.2,3443.1,1.71396]
[1754190321870,20.6733,3443.2,3443.1,9.40006063]
[1754190322666,21.6788,3443.2,3443.1,9.40006063]
[1754190323563,22.5645,3443.2,3443.1,9.40006063]
[1754190324371,22.8906,3443.2,3443.1,9.40006063]
[1754190324562,22.8906,3443.2,3443.1,8.84966063]
[1754190324869,22.8906,3443.2,3443.1,9.40006063]
[1754190330873,22.8906,3443.2,3443.1,8.84966063]
[1754190333374,2.3662,3443.1,3443.0,4.09306]
[1754190333576,2.8194,3443.1,3443.0,5.57686]
[1754190333776,2.8194,3443.1,3443.0,12.58656063]
[1754190334671,2.8194,3443.1,3443.0,12.05876063]
[1754190335780,2.8194,3443.1,3443.0,4.09306]
[1754190336079,2.8194,3443.1,3443.0,5.98116]
[1754190338976,2.8194,3443.1,3443.0,4.19106]
[1754190339178,4.67705829,3443.1,3443.0,3.2078]
[1754190339371,24.75105829,3443.1,3442.8,0.58099]
[1754190339577,1.1433,3442.9,3442.8,7.41829063]
[1754190339780,22.8924,3442.9,3442.8,7.41829063]
[1754190339975,22.8924,3442.9,3442.8,0.58099]
[1754190340172,22.8924,3442.9,3442.8,2.77339]
[1754190341476,22.8924,3442.9,3442.8,8.22489063]
[1754190341878,22.8924,3442.9,3442.8,0.58099]
[1754190344582,22.8924,3442.9,3442.8,1.03639]
[1754190344782,22.8924,3442.9,3442.8,1.34069]
[1754190344977,22.8924,3442.9,3442.8,1.96679]
[1754190345480,22.8924,3442.9,3442.8,1.34069]
[1754190346584,22.8924,3442.9,3442.8,0.3043]
[1754190347384,22.8924,3442.9,3442.8,0.7597]
[1754190348085,22.8924,3442.9,3442.8,2.1924]
[1754190352292,21.8388,3442.9,3442.8,2.1924]
[1754190352491,21.8388,3442.9,3442.8,8.78300063]
[1754190352492,20.6955,3442.9,3442.8,8.78300063]
[1754190353386,21.2959,3442.9,3442.8,8.78300063]
[1754190354490,22.8924,3442.9,3442.8,8.78300063]
[1754190355495,2.8194,3443.4,3443.3,2.46902]
[1754190355695,23.80013516,3443.4,3443.3,2.77332]
[1754190355986,23.80013516,3443.4,3443.3,1.91362]
[1754190356196,23.47483516,3443.4,3443.3,9.36392063]
[1754190356497,23.79913516,3443.4,3443.3,8.85092063]
[1754190357286,2.8194,3443.1,3443.0,0.58096]
[1754190357492,25.65679345,3443.1,3443.0,0.58096]
[1754190358195,25.65679345,3443.1,3442.9,1.03638]
[1754190358397,2.8194,3443.0,3442.9,0.58098]
[1754190358793,2.8194,3443.0,3442.9,1.03638]
[1754190359593,1.1433,3443.0,3442.7,4.24421]